bitfinex/quotes_BTCUSD_20251209
["timestamp","ask_amount","ask_price","bid_price","bid_amount"]
[1765267910378,0.00051466,90631.0,90630.0,0.26479618]
[1765267910826,0.00051466,90631.0,90630.0,0.27512831]
[1765267912788,0.00051466,90631.0,90630.0,0.29252831]
[1765267921942,0.00051466,90631.0,90630.0,0.29221831]
[1765267922148,0.00051466,90631.0,90630.0,0.004]
[1765267922365,0.02987571,90631.0,90630.0,0.004]
[1765267922555,0.06792784,90631.0,90630.0,0.004]
[1765267923327,0.02470679,90631.0,90630.0,0.001]
[1765267923929,0.01103472,90623.0,90620.0,0.02298]
[1765267924163,0.22069812,90622.0,90620.0,0.02298]
[1765267924402,0.22070183,90620.0,90619.0,0.01199]
[1765267924580,0.23103396,90620.0,90619.0,0.01199]
[1765267925305,0.30161035,90620.0,90619.0,0.01199]
[1765267925584,0.23175168,90615.0,90612.0,0.0174]
[1765267926745,0.0110357,90615.0,90612.0,0.02843606]
[1765267926948,0.22071046,90617.0,90612.0,0.27413606]
[1765267926949,0.23174591,90617.0,90612.0,0.27413606]
[1765267927125,0.27514581,90617.0,90613.0,0.03401594]
[1765267928755,0.27514581,90617.0,90613.0,0.01103594]
[1765267929574,0.27514581,90617.0,90613.0,0.01203594]
[1765267930371,0.27514581,90617.0,90613.0,0.03501594]
[1765267931293,0.05443535,90617.0,90613.0,0.03501594]
[1765267931453,0.02381406,90616.0,90613.0,0.03501594]
[1765267931883,0.02381406,90616.0,90613.0,0.25573263]
[1765267932296,0.02381406,90616.0,90613.0,0.25473263]
[1765267932590,0.0110357,90615.0,90613.0,0.001]
[1765267932793,0.22071644,90614.0,90613.0,0.001]
[1765267932993,0.2727578,90614.0,90613.0,0.001]
[1765267933414,0.05204136,90614.0,90612.0,0.0174]
[1765267933846,0.05204136,90614.0,90613.0,0.002]
[1765267934046,0.2727578,90614.0,90612.0,0.0174]
[1765267934248,0.05204136,90614.0,90613.0,0.001]
[1765267934399,0.05204136,90614.0,90613.0,0.003]
[1765267935626,0.05204136,90614.0,90613.0,0.002]
[1765267936385,0.05897136,90614.0,90613.0,0.002]
[1765267937230,0.07283136,90614.0,90613.0,0.002]
[1765267937443,0.07283136,90614.0,90613.0,0.003]
[1765267937863,0.01103533,90618.0,90614.0,0.22071496]
[1765267938001,0.01103545,90617.0,90613.0,0.01714]
[1765267938194,0.001,90614.0,90613.0,0.002]
[1765267938629,0.001,90614.0,90611.0,0.24374925]
[1765267938827,0.001,90614.0,90612.0,0.01103606]
[1765267939350,0.01203582,90614.0,90611.0,0.01199]
[1765267939582,0.01103582,90614.0,90613.0,0.001]
[1765267939735,0.01103582,90614.0,90611.0,0.02302618]
[1765267939937,0.0364303,90614.0,90611.0,0.02302618]
[1765267940141,0.02539448,90614.0,90612.0,0.001]
[1765267940343,0.001,90618.0,90616.0,0.01103557]
[1765267940542,0.22072088,90613.0,90606.0,0.2667403]
[1765267940767,0.23175737,90612.0,90607.0,0.01103667]
[1765267940972,0.23175737,90612.0,90608.0,0.01103655]
[1765267941497,0.23176248,90610.0,90606.0,0.03497]
[1765267941691,0.22073109,90608.0,90606.0,0.03497]
[1765267942527,0.01103643,90609.0,90606.0,0.03497]
[1765267943245,0.23175737,90612.0,90607.0,0.22073349]
[1765267943449,0.23175737,90612.0,90608.0,0.01514]
[1765267943651,0.23175737,90612.0,90606.0,0.02302679]
[1765267943652,0.22073349,90607.0,90605.0,0.0174]
[1765267943852,0.01386,90606.0,90605.0,0.0174]
[1765267944331,0.22073349,90607.0,90606.0,0.001]
[1765267944686,0.22073349,90607.0,90605.0,0.01751586]
[1765267946228,0.22073349,90607.0,90605.0,0.01851586]
[1765267946752,0.07173715,90606.0,90605.0,0.01851586]
[1765267947949,0.07173715,90606.0,90605.0,0.00111586]
[1765267948681,0.07173715,90606.0,90605.0,0.00011586]
[1765267949081,0.07173715,90606.0,90605.0,0.00111586]
[1765267952473,0.08207411,90606.0,90605.0,0.00111586]
[1765267965945,0.09593411,90606.0,90605.0,0.00111586]
[1765267966351,0.08207411,90606.0,90605.0,0.00111586]
[1765267966706,0.08207411,90606.0,90605.0,0.01357586]
[1765267967047,0.01033696,90606.0,90605.0,0.03739586]
[1765267967543,0.01033696,90606.0,90605.0,0.01357586]
[1765267967763,0.01033696,90611.0,90610.0,0.22072618]
[1765267967958,0.01103484,90622.0,90610.0,0.22072618]
[1765267967959,0.01103521,90619.0,90616.0,0.01103557]
[1765267968160,0.02137616,90619.0,90616.0,0.01103557]
[1765267968338,0.02137616,90619.0,90617.0,0.01246]
[1765267968339,0.01034095,90619.0,90617.0,0.01246]
[1765267968505,0.02137591,90621.0,90617.0,0.02349545]
[1765267968705,0.02137591,90621.0,90617.0,0.04731545]
[1765267969117,0.01103509,90620.0,90617.0,0.03628]
[1765267969319,0.01034095,90620.0,90617.0,0.26802273]
[1765267969568,0.02137579,90622.0,90618.0,0.01103533]
[1765267969735,0.01034095,90622.0,90621.0,0.01246]
[1765267969945,0.00023735,90623.0,90621.0,0.01246]
[1765267970148,0.0105783,90623.0,90621.0,0.01246]
[1765267970347,0.23127482,90623.0,90621.0,0.01246]
[1765267970543,0.01034095,90622.0,90621.0,0.01246]
[1765267972698,0.01134095,90622.0,90621.0,0.01246]
[1765267974505,0.06063655,90622.0,90621.0,0.01246]
[1765267975319,0.01133634,90622.0,90621.0,0.01246]
[1765267976219,0.22070599,90619.0,90617.0,0.01246]
[1765267976409,0.01103509,90620.0,90617.0,0.24420438]
[1765267977692,0.02160646,90623.0,90618.0,0.01103533]
[1765267977920,0.2317318,90622.0,90618.0,0.01103533]
[1765267978033,0.01033439,90621.0,90618.0,0.01103533]
[1765267978586,0.01033439,90621.0,90618.0,0.23173994]
[1765267978797,0.01103484,90622.0,90618.0,0.01103533]
[1765267978998,0.02136923,90622.0,90618.0,0.01103533]
[1765267979973,0.02236923,90622.0,90618.0,0.01103533]
[1765267981243,0.23173616,90621.0,90617.0,0.01246]
[1765267981447,0.22070592,90619.0,90617.0,0.01246]
[1765267981645,0.01103545,90617.0,90613.0,0.24421472]
[1765267981808,0.00693,90618.0,90615.0,0.23174945]
[1765267982226,0.22763733,90618.0,90614.0,0.01103582]
[1765267982638,0.22763733,90618.0,90613.0,0.02349594]
[1765267982639,0.01103557,90616.0,90613.0,0.02349594]
[1765267982933,0.22071601,90615.0,90613.0,0.01246]
[1765267983159,0.22072098,90613.0,90611.0,0.01246]
[1765267983486,0.01103643,90609.0,90606.0,0.0174]
[1765267984020,0.22073106,90608.0,90606.0,0.0174]
[1765267984439,0.01103643,90609.0,90606.0,0.02931]
[1765267984678,0.0720293,90608.0,90606.0,0.02931]
[1765267984856,0.0720293,90608.0,90606.0,0.01291]
[1765267986030,0.0720293,90608.0,90606.0,0.03605]
[1765267986152,0.0720293,90608.0,90606.0,0.25678369]
[1765267986347,0.0720293,90608.0,90606.0,0.03505]
[1765267986551,0.01103643,90609.0,90606.0,0.03605]
[1765267986552,0.03368966,90607.0,90606.0,0.03605]
[1765267987894,0.03368966,90607.0,90606.0,0.03505]
[1765267988427,0.25442315,90607.0,90606.0,0.01291]
[1765267988656,0.03368966,90607.0,90606.0,0.01291]
[1765267991639,0.03368966,90607.0,90606.0,0.001]
[1765267991845,0.04402896,90607.0,90606.0,0.001]
[1765267995410,0.0103393,90609.0,90607.0,0.2207311]
[1765267995611,0.00023735,90623.0,90622.0,0.22069696]
[1765267995824,0.00023735,90623.0,90622.0,0.23260696]
[1765267996025,0.00023735,90623.0,90622.0,0.27103696]
[1765268001515,0.00023735,90623.0,90622.0,0.27264983]
[1765268003184,0.00023735,90623.0,90622.0,0.27464983]
[1765268005581,0.00023735,90623.0,90622.0,0.05234]
[1765268005917,0.00023735,90623.0,90622.0,0.0466]
[1765268006072,0.00023735,90623.0,90622.0,0.0694]
[1765268012055,0.00023735,90623.0,90622.0,0.052]
[1765268012253,0.00023735,90623.0,90622.0,0.0694]
[1765268012950,0.04991503,90623.0,90622.0,0.0694]
[1765268013159,0.00023735,90623.0,90622.0,0.0694]
[1765268030612,0.00023735,90623.0,90622.0,0.10893715]
[1765268031544,0.00023735,90623.0,90622.0,0.0694]
[1765268037919,0.00023735,90623.0,90622.0,0.052]
[1765268038122,0.00023735,90623.0,90622.0,0.0694]
[1765268043076,0.00023735,90623.0,90622.0,0.03131]
[1765268043684,0.02221008,90623.0,90622.0,0.03131]
[1765268050452,0.02221008,90623.0,90622.0,0.04791]
[1765268052080,0.00023735,90623.0,90622.0,0.03131]
[1765268052468,0.00023735,90623.0,90622.0,0.04159699]
[1765268052634,0.04524217,90623.0,90622.0,0.002]
[1765268053274,0.03138217,90623.0,90622.0,0.002]
[1765268053572,0.01752217,90623.0,90622.0,0.002]
[1765268053823,0.01852217,90623.0,90622.0,0.002]
[1765268054620,0.09209878,90623.0,90622.0,0.002]
[1765268054799,0.01103496,90621.0,90617.0,0.02285545]
[1765268055002,0.01035482,90621.0,90618.0,0.01103533]
[1765268055221,0.01035482,90621.0,90620.0,0.0166]
[1765268055464,0.02262689,90623.0,90620.0,0.0166]
[1765268055604,0.02262689,90623.0,90622.0,0.01182]
[1765268055799,0.01227207,90623.0,90622.0,0.01182]
[1765268056141,0.01227207,90623.0,90622.0,0.05233]
[1765268056441,0.01127207,90623.0,90622.0,0.05233]
[1765268057351,0.00023735,90623.0,90622.0,0.27302696]
[1765268057709,0.00023735,90623.0,90622.0,0.24911696]
[1765268058100,0.00023735,90623.0,90622.0,0.27302696]
[1765268058734,0.00023735,90623.0,90622.0,0.05233]
[1765268059285,0.00023735,90623.0,90622.0,0.01182]
[1765268059496,0.00023735,90623.0,90620.0,0.01103509]
[1765268060048,0.22093356,90623.0,90619.0,0.01103521]
[1765268060244,0.01035482,90622.0,90619.0,0.01103521]
[1765268060876,0.02138966,90622.0,90619.0,0.01103521]
[1765268061279,0.01035482,90622.0,90619.0,0.01103521]
[1765268062388,0.01035482,90622.0,90621.0,0.22069939]
[1765268062548,0.00023735,90623.0,90621.0,0.22069939]
[1765268064903,0.00023735,90623.0,90620.0,0.01103509]
[1765268065308,0.23196752,90623.0,90620.0,0.01103509]
[1765268065511,0.01035482,90622.0,90620.0,0.01103509]
[1765268065901,0.01127207,90623.0,90620.0,0.01103509]
[1765268067312,0.02155149,90624.0,90620.0,0.01103509]
[1765268067813,0.01103472,90623.0,90620.0,0.01103509]
[1765268068428,0.01051689,90624.0,90622.0,0.22069642]
[1765268068574,0.00016207,90624.0,90622.0,0.22069642]
[1765268069548,0.01119667,90624.0,90620.0,0.01103509]
[1765268069775,0.02255149,90624.0,90621.0,0.01103496]
[1765268070316,0.02155149,90624.0,90621.0,0.01103496]
[1765268070522,0.01051689,90624.0,90621.0,0.01103496]
[1765268070728,0.00016207,90624.0,90621.0,0.01103496]
[1765268071749,0.01035482,90626.0,90623.0,0.02747472]
[1765268071927,0.01103411,90628.0,90623.0,0.01103472]
[1765268071928,0.001,90624.0,90623.0,0.01103472]
[1765268072130,0.001,90624.0,90623.0,0.03413472]
[1765268072286,0.01103411,90628.0,90625.0,0.01103448]
[1765268073436,0.02238893,90628.0,90625.0,0.01103448]
[1765268074718,0.01135482,90628.0,90625.0,0.2317222]
[1765268074887,0.001,90628.0,90625.0,0.2317222]
[1765268077541,0.001,90628.0,90626.0,0.22068508]
[1765268078400,0.02138869,90630.0,90626.0,0.01103436]
[1765268078573,0.01103399,90629.0,90626.0,0.01103436]
[1765268078754,0.001,90628.0,90626.0,0.01103436]
[1765268078952,0.001,90628.0,90626.0,0.23171972]
[1765268079158,0.02138869,90630.0,90626.0,0.23171972]
[1765268079558,0.02238869,90630.0,90626.0,0.01103436]
[1765268080584,0.01135482,90630.0,90627.0,0.23171741]
[1765268080785,0.001,90630.0,90627.0,0.23171741]
[1765268081587,0.24927243,90631.0,90627.0,0.01103423]
[1765268081766,0.01135482,90630.0,90627.0,0.01103423]
[1765268081968,0.001,90630.0,90628.0,0.22068234]
[1765268082172,0.001,90630.0,90629.0,0.02819]
[1765268082781,0.00027732,90631.0,90629.0,0.01175]
[1765268083186,0.22095279,90631.0,90629.0,0.01175]
[1765268083388,0.22095279,90631.0,90615.0,0.27770909]
[1765268083389,0.01103436,90626.0,90623.0,0.03413472]
[1765268083595,0.01103436,90626.0,90623.0,0.01103472]
[1765268083982,0.231722,90626.0,90623.0,0.01103472]
[1765268084178,0.01035482,90625.0,90623.0,0.01103472]
[1765268084412,0.01103436,90626.0,90623.0,0.01103472]
[1765268084617,0.02138918,90626.0,90621.0,0.2434833]
[1765268084793,0.0110346,90624.0,90621.0,0.01175]
[1765268084995,0.02138942,90624.0,90621.0,0.01175]
[1765268085196,0.02138942,90624.0,90615.0,0.0284357]
[1765268085197,0.01418,90622.0,90618.0,0.01035482]
[1765268085399,0.01418,90622.0,90605.0,0.01115277]
[1765268085400,0.22072375,90611.0,90606.0,0.03959699]
[1765268085730,0.01103594,90613.0,90605.0,0.00011586]
[1765268085731,0.22782593,90606.0,90605.0,0.00011586]
[1765268085930,0.00709,90606.0,90605.0,0.01751586]
[1765268086660,0.01743966,90606.0,90605.0,0.01751586]
[1765268087306,0.00709,90606.0,90605.0,0.01751586]
[1765268087714,0.00709,90606.0,90605.0,0.01851586]
[1765268088981,0.00709,90606.0,90605.0,0.00111586]
[1765268089116,0.10295724,90606.0,90605.0,0.00111586]
[1765268090016,0.01743518,90606.0,90605.0,0.00111586]
[1765268091434,0.01034518,90606.0,90605.0,0.04065586]
[1765268091651,0.02138148,90610.0,90606.0,0.22073593]
[1765268091881,0.02138148,90610.0,90606.0,0.24352272]
[1765268092088,0.01103643,90609.0,90606.0,0.02278679]
[1765268093265,0.01103643,90609.0,90606.0,0.02378679]
[1765268093890,0.02138161,90609.0,90606.0,0.02199789]
[1765268094119,0.24211224,90609.0,90606.0,0.01275]
[1765268094298,0.01034518,90608.0,90606.0,0.01275]
[1765268094510,0.02138161,90609.0,90606.0,0.01275]
[1765268095244,0.00709,90607.0,90606.0,0.01275]
[1765268095466,0.00709,90607.0,90606.0,0.001]
[1765268095467,0.01743518,90607.0,90606.0,0.001]
[1765268095593,0.22073593,90606.0,90605.0,0.00011586]
[1765268095801,0.23108111,90606.0,90605.0,0.00011586]
[1765268097646,0.23108111,90606.0,90605.0,0.00111586]
[1765268097647,0.01034518,90606.0,90605.0,0.00111586]
[1765268097807,0.02138173,90608.0,90605.0,0.03890586]
[1765268099058,0.22073372,90607.0,90605.0,0.03890586]
[1765268099220,0.01034518,90606.0,90605.0,0.03890586]
[1765268099423,0.01034518,90606.0,90605.0,0.03790586]
[1765268099906,0.01034518,90606.0,90605.0,0.03890586]
[1765268100076,0.02138173,90608.0,90605.0,0.03790586]
[1765268100422,0.01034518,90608.0,90606.0,0.22073397]
[1765268100628,0.01103655,90608.0,90605.0,0.03890586]
[1765268101340,0.23176967,90608.0,90605.0,0.03890586]
[1765268101540,0.01034518,90607.0,90605.0,0.03890586]
[1765268101941,0.02138173,90608.0,90605.0,0.03890586]
[1765268102148,0.02138173,90608.0,90605.0,0.03790586]
[1765268102347,0.02138173,90608.0,90606.0,0.001]
[1765268102769,0.02138173,90608.0,90605.0,0.03790586]
[1765268102965,0.22073538,90607.0,90605.0,0.03890586]
[1765268103175,0.01034518,90606.0,90605.0,0.03890586]
[1765268103377,0.01034518,90606.0,90605.0,0.01519586]
[1765268103582,0.01103655,90608.0,90606.0,0.001]
[1765268103830,0.02136099,90608.0,90606.0,0.001]
[1765268103962,0.02136099,90608.0,90605.0,0.01115277]
[1765268104788,0.2317478,90616.0,90609.0,0.01103643]
[1765268105101,0.01032414,90615.0,90612.0,0.02300606]
[1765268105539,0.01032414,90615.0,90612.0,0.01197]
[1765268105540,0.02135984,90615.0,90612.0,0.01197]
[1765268105714,0.01032414,90615.0,90612.0,0.26643646]
[1765268105915,0.01103545,90617.0,90613.0,0.23175285]
[1765268106414,0.02135959,90617.0,90613.0,0.23175285]
[1765268106621,0.01032414,90617.0,90615.0,0.220714]
[1765268106855,0.01103545,90617.0,90614.0,0.01103582]
[1765268107042,0.02135959,90617.0,90614.0,0.01103582]
[1765268107663,0.22069147,90625.0,90614.0,0.01103582]
[1765268107664,0.01103399,90629.0,90626.0,0.01103436]
[1765268107869,0.22066958,90634.0,90626.0,0.01103436]
[1765268107870,0.01060165,90631.0,90628.0,0.03878411]
[1765268108020,0.00027732,90631.0,90628.0,0.25946622]
[1765268108431,0.00027732,90631.0,90629.0,0.02424]
[1765268108626,0.00027732,90631.0,90628.0,0.25946622]
[1765268108869,0.001,90629.0,90628.0,0.02775]
[1765268109929,0.00027732,90631.0,90628.0,0.25946453]
[1765268110333,0.00127732,90631.0,90628.0,0.25946453]
[1765268110765,0.00027732,90631.0,90628.0,0.25946453]
[1765268111066,0.00127732,90631.0,90628.0,0.25946453]
[1765268112081,0.02433006,90630.0,90627.0,0.01103423]
[1765268112644,0.03536393,90630.0,90627.0,0.01103423]
[1765268112847,0.02433006,90630.0,90627.0,0.01103423]
[1765268113903,0.02533006,90630.0,90627.0,0.01103423]
[1765268114869,0.02533006,90630.0,90628.0,0.22068234]
[1765268115105,0.02896932,90629.0,90628.0,0.22068234]
[1765268115976,0.02533006,90630.0,90628.0,0.22068234]
[1765268116401,0.02433006,90630.0,90628.0,0.22068234]
[1765268116780,0.02533006,90630.0,90628.0,0.22068234]
[1765268117212,0.001,90630.0,90628.0,0.22068234]
[1765268118965,0.001,90630.0,90627.0,0.01103423]
[1765268119193,0.001,90630.0,90628.0,0.22068234]
[1765268119429,0.001,90630.0,90627.0,0.01103423]
[1765268119803,0.00027732,90631.0,90628.0,0.01103411]
[1765268119986,0.05060583,90630.0,90628.0,0.01103411]
[1765268120180,0.05060583,90630.0,90628.0,0.23171575]
[1765268120813,0.04960583,90630.0,90628.0,0.23171575]
[1765268121217,0.05060583,90630.0,90628.0,0.22068234]
[1765268121567,0.001,90630.0,90628.0,0.22068234]
[1765268122774,0.01103338,90634.0,90630.0,0.23171134]
[1765268123841,0.01103338,90634.0,90631.0,0.01103375]
[1765268124045,0.01203338,90634.0,90631.0,0.01103375]
[1765268124456,0.01303338,90634.0,90631.0,0.01103375]
[1765268124645,0.001,90634.0,90631.0,0.01103375]
[1765268124827,0.002,90634.0,90632.0,0.22067261]
[1765268125391,0.001,90634.0,90632.0,0.22067261]
[1765268125732,0.001,90634.0,90632.0,0.23170624]
[1765268126120,0.01103314,90636.0,90632.0,0.23170624]
[1765268126322,0.23169776,90636.0,90632.0,0.01103363]
[1765268126524,0.001,90634.0,90632.0,0.01103363]
[1765268128783,0.002,90634.0,90632.0,0.01103363]
[1765268131613,0.002,90634.0,90631.0,0.24412702]
[1765268131614,0.01303338,90634.0,90631.0,0.01242]
[1765268131813,0.0110335,90633.0,90629.0,0.01242]
[1765268132036,0.01303338,90634.0,90631.0,0.01103375]
[1765268132428,0.01203338,90634.0,90631.0,0.01103375]
[1765268132774,0.01303338,90634.0,90631.0,0.01103375]
[1765268133327,0.01203338,90634.0,90631.0,0.01103375]
[1765268133527,0.01303338,90634.0,90631.0,0.01103375]
[1765268133847,0.0110335,90633.0,90630.0,0.01103387]
[1765268134391,0.01303338,90634.0,90630.0,0.23170982]
[1765268134594,0.02137163,90634.0,90630.0,0.23170982]
[1765268135147,0.002,90633.0,90631.0,0.22067292]
[1765268135509,0.001,90633.0,90631.0,0.22067292]
[1765268136322,0.01033825,90634.0,90631.0,0.23170667]
[1765268136716,0.24304011,90634.0,90630.0,0.01103387]
[1765268136942,0.01033825,90633.0,90630.0,0.01103387]
[1765268137252,0.01133825,90633.0,90630.0,0.01103387]
[1765268137408,0.01033825,90633.0,90630.0,0.2317113]
[1765268137609,0.01133825,90633.0,90630.0,0.2317113]
[1765268137803,0.02237175,90633.0,90630.0,0.2317113]
[1765268138039,0.02137175,90633.0,90630.0,0.2317113]
[1765268138447,0.02137175,90633.0,90630.0,0.01103387]
[1765268138840,0.01103387,90630.0,90626.0,0.02843436]
[1765268139063,0.00709,90627.0,90626.0,0.0174]
[1765268139984,0.00709,90627.0,90626.0,0.22068722]
[1765268140138,0.00709,90627.0,90626.0,0.23808722]
[1765268140481,0.00709,90627.0,90626.0,0.23908722]
[1765268144088,0.00709,90633.0,90631.0,0.01103375]
[1765268144455,0.01033825,90634.0,90632.0,0.01504]
[1765268144692,0.01033825,90637.0,90634.0,0.2316993]
[1765268144855,0.01033825,90636.0,90634.0,0.2316993]
[1765268145055,0.01033825,90635.0,90634.0,0.2316993]
[1765268145297,0.02137127,90637.0,90634.0,0.2316993]
[1765268145477,0.01033825,90636.0,90634.0,0.2316993]
[1765268145675,0.01033825,90637.0,90634.0,0.2316993]
[1765268145900,0.01033825,90636.0,90634.0,0.23178958]
[1765268146075,0.01033825,90637.0,90634.0,0.23178958]
[1765268146258,0.01033825,90636.0,90634.0,9.028e-05]
[1765268146882,0.001,90635.0,90634.0,9.028e-05]
[1765268147143,0.001,90635.0,90634.0,0.22075802]
[1765268147343,0.02337127,90637.0,90634.0,0.2317914]
[1765268147495,0.01033825,90636.0,90634.0,0.2317914]
[1765268147697,0.002,90637.0,90634.0,0.2317914]
[1765268147698,0.002,90637.0,90636.0,0.22066287]
[1765268147898,0.002,90637.0,90636.0,0.24973574]
[1765268148132,0.00023729,90639.0,90638.0,0.220658]
[1765268148338,0.00023729,90639.0,90638.0,0.259208]
[1765268149908,0.00223729,90639.0,90638.0,0.259208]
[1765268150325,0.00023729,90639.0,90638.0,0.259208]
[1765268151128,0.00023729,90639.0,90638.0,0.260208]
[1765268151674,0.00023729,90639.0,90638.0,0.236698]
[1765268152618,0.00023729,90639.0,90638.0,0.260208]
[1765268158191,0.00023729,90639.0,90638.0,0.26182087]
[1765268164846,0.00023729,90639.0,90638.0,0.23831087]
[1765268164998,0.00023729,90639.0,90638.0,0.25571087]
[1765268165199,0.00023729,90639.0,90638.0,0.23831087]
[1765268165406,0.00023729,90639.0,90638.0,0.25571087]
[1765268165725,0.00023729,90639.0,90638.0,0.27983087]
[1765268168704,0.00023729,90639.0,90638.0,0.61386182]
[1765268168837,0.0004,90650.0,90649.0,0.22063122]
[1765268169209,0.0002,90670.0,90657.0,0.22061175]
[1765268169409,0.0002,90670.0,90657.0,0.25056462]
[1765268169558,0.00065343,90658.0,90657.0,0.25056462]
[1765268169773,0.00065343,90658.0,90657.0,0.27517462]
[1765268171371,0.00065343,90658.0,90649.0,0.01376]
[1765268171372,0.01103107,90653.0,90649.0,0.01376]
[1765268171588,0.22063365,90648.0,90646.0,0.02278973]
[1765268171795,0.01103156,90649.0,90647.0,0.0174]
[1765268172013,0.23166487,90649.0,90647.0,0.0174]
[1765268172239,0.01103119,90652.0,90647.0,0.0284318]
[1765268172448,0.01103143,90650.0,90647.0,0.0284318]
[1765268172648,0.01103131,90651.0,90648.0,0.01103168]
[1765268172849,0.01103119,90652.0,90649.0,0.01103156]
[1765268173294,0.01691107,90653.0,90650.0,0.01103143]
[1765268173710,0.00588,90653.0,90650.0,0.01103143]
[1765268174173,0.00588,90653.0,90649.0,0.01103156]
[1765268174482,0.00588,90653.0,90650.0,0.01103143]
[1765268175418,0.01103083,90655.0,90651.0,0.24341766]
[1765268175627,0.001,90653.0,90651.0,0.24341766]
[1765268175821,0.001,90653.0,90652.0,0.03564119]
[1765268176021,0.01112046,90658.0,90654.0,0.01103095]
[1765268176221,9e-05,90658.0,90655.0,0.23164745]
[1765268176424,9e-05,90658.0,90657.0,0.23719175]
[1765268176626,9e-05,90658.0,90657.0,0.27920175]
[1765268176849,9e-05,90658.0,90657.0,0.28081462]
[1765268177228,0.00065343,90658.0,90657.0,0.28081462]
[1765268178266,0.00065343,90658.0,90657.0,0.28481462]
[1765268184775,0.00065343,90658.0,90657.0,0.00561287]
[1765268184996,0.02744893,90658.0,90657.0,0.004]
[1765268185192,0.06327893,90658.0,90657.0,0.0214]
[1765268185422,0.01699343,90658.0,90657.0,0.0214]
[1765268185619,0.01699343,90658.0,90657.0,0.05765]
[1765268185620,0.00065343,90658.0,90657.0,0.05765]
[1765268185798,0.00065343,90658.0,90657.0,0.07971117]
[1765268185996,0.00065343,90658.0,90657.0,0.08071117]
[1765268186218,0.00065343,90658.0,90657.0,0.05717117]
[1765268186381,0.00065343,90658.0,90657.0,0.05617117]
[1765268186804,0.00065343,90658.0,90657.0,0.05765]
[1765268187254,0.00065343,90658.0,90657.0,0.05665]
[1765268187472,0.00165343,90658.0,90657.0,0.05665]
[1765268188749,0.00165343,90658.0,90657.0,0.05826287]
[1765268188959,0.00165343,90658.0,90657.0,0.08032404]
[1765268189206,0.00165343,90658.0,90657.0,0.10282255]
[1765268189337,0.00165343,90658.0,90657.0,0.08076138]
[1765268189537,0.00165343,90658.0,90657.0,0.10282255]
[1765268189981,0.00065343,90658.0,90657.0,0.10282255]
[1765268190188,0.00065343,90658.0,90657.0,0.08028255]
[1765268190343,0.00065343,90658.0,90657.0,0.001]
[1765268190344,0.25709275,90658.0,90657.0,0.001]
[1765268190552,0.25709275,90658.0,90657.0,0.003]
[1765268190553,0.30765619,90658.0,90657.0,0.003]
[1765268190758,0.00065343,90658.0,90657.0,0.003]
[1765268190962,0.00065343,90658.0,90657.0,0.04225]
[1765268191159,0.00065343,90658.0,90657.0,0.002]
[1765268191408,0.00165343,90658.0,90654.0,0.01103095]
[1765268191623,0.00109,90658.0,90655.0,0.01103083]
[1765268191819,0.00109,90658.0,90656.0,0.22061418]
[1765268192222,0.00109,90658.0,90657.0,0.06131117]
[1765268192673,0.00109,90658.0,90657.0,0.03925]
[1765268192833,9e-05,90658.0,90657.0,0.03925]
[1765268193030,9e-05,90658.0,90657.0,0.01571]
[1765268193275,0.00109,90658.0,90657.0,0.01571]
[1765268193618,9e-05,90658.0,90657.0,0.03925]
[1765268194064,0.00109,90658.0,90657.0,0.03925]
[1765268194232,0.00109,90658.0,90657.0,0.06121418]
[1765268195242,0.00109,90658.0,90657.0,0.06282705]
[1765268196362,9e-05,90658.0,90657.0,0.06282705]
[1765268196563,9e-05,90658.0,90657.0,0.01732287]
[1765268196765,9e-05,90658.0,90657.0,0.04386287]
[1765268197137,0.00065343,90658.0,90657.0,0.04386287]
[1765268197338,0.00065343,90658.0,90657.0,0.04286287]
[1765268197543,0.00065343,90658.0,90657.0,0.07085715]
[1765268197749,0.00165343,90658.0,90657.0,0.06292404]
[1765268197957,0.00165343,90658.0,90657.0,0.06392404]
[1765268204937,0.00165343,90658.0,90657.0,0.12309603]
[1765268205140,0.00165343,90658.0,90657.0,0.12314636]
[1765268205753,0.00065343,90658.0,90657.0,0.12314636]
[1765268206131,0.00065343,90658.0,90657.0,0.09391832]
[1765268206332,0.00065343,90658.0,90657.0,0.15313333]
[1765268206594,0.00065343,90658.0,90657.0,0.15613333]
[1765268207133,0.00065343,90658.0,90657.0,0.12613905]
[1765268207337,0.00065343,90658.0,90657.0,0.06692404]
[1765268208500,0.00065343,90658.0,90657.0,0.12612135]
[1765268208901,0.00065343,90658.0,90657.0,0.06692404]
[1765268209661,0.00065343,90658.0,90657.0,0.07280404]
[1765268209867,0.00065343,90658.0,90657.0,0.06692404]
[1765268210172,0.00065343,90658.0,90657.0,0.04486287]
[1765268210410,0.00065343,90658.0,90657.0,0.06226287]
[1765268210797,0.00065343,90658.0,90657.0,0.08432404]
[1765268211379,0.00065343,90658.0,90657.0,0.06592404]
[1765268211582,0.00065343,90658.0,90657.0,0.08332404]
[1765268211790,0.00065343,90658.0,90657.0,0.08032404]
[1765268211984,0.00065343,90658.0,90657.0,0.06292404]
[1765268212215,0.00065343,90658.0,90657.0,0.05878404]
[1765268212443,0.00065343,90658.0,90657.0,0.08232404]
[1765268212931,0.00065343,90658.0,90657.0,0.30293579]
[1765268213161,0.00065343,90658.0,90657.0,0.28087462]
[1765268213518,0.00065343,90658.0,90657.0,0.27887462]
[1765268214442,0.00165343,90658.0,90657.0,0.27887462]
[1765268214955,0.00065343,90658.0,90657.0,0.27887462]
[1765268215310,0.00065343,90658.0,90657.0,0.27987462]
[1765268221273,0.00065343,90658.0,90657.0,0.33907193]
[1765268221605,0.00065343,90658.0,90657.0,0.27987462]
[1765268221954,0.00065343,90658.0,90657.0,0.27887462]
[1765268222542,0.00065343,90658.0,90657.0,0.28187462]
[1765268223941,0.00065343,90658.0,90657.0,0.28287462]
[1765268235902,0.00065343,90658.0,90657.0,0.28729241]
[1765268238388,0.00065343,90658.0,90657.0,0.26989241]
[1765268238592,0.00065343,90658.0,90657.0,0.28729241]
[1765268238944,0.00065343,90658.0,90657.0,0.28287462]
[1765268239142,0.00065343,90658.0,90657.0,0.34210992]
[1765268240095,0.00065343,90658.0,90657.0,0.22461175]
[1765268240300,0.00065343,90658.0,90657.0,0.24101175]
[1765268240491,0.00065343,90658.0,90657.0,0.25757175]
[1765268240693,0.00065343,90658.0,90657.0,0.23801175]
[1765268241178,0.00065343,90658.0,90657.0,0.24001175]
[1765268241382,0.00065343,90658.0,90657.0,0.23801175]
[1765268241593,0.00165343,90658.0,90657.0,0.23801175]
[1765268243682,0.00165343,90658.0,90657.0,0.0174]
[1765268245794,0.00165343,90658.0,90657.0,0.03255]
[1765268246000,0.00165343,90658.0,90657.0,0.0563]
[1765268247929,0.00165343,90658.0,90657.0,0.07836117]